[Event "Prague Festival Futures 2024"]
[Site "Prague"]
[Date "2024.02.28"]
[Round "2.3"]
[White "Stara, Zuzana"]
[Black "Markina, Sofiia"]
[Result "1-0"]
[ECO "B13"]
[WhiteElo "1674"]
[BlackElo "1680"]
[Annotator "NA RC"]
[PlyCount "133"]
[EventDate "2024.02.22"]
[EventType "tourn"]
[EventCountry "CZE"]
[SourceTitle "playchess.com"]
[Source "ChessBase"]
[SourceQuality "1"]
[TimeControl "40/5400+30:1800+30"]

1. e4 {[%emt 0:00:01]} c6 {[%emt 0:00:12]} 2. d4 {[%emt 0:00:04]} d5 {[%emt 0:00:09]} 3. exd5 {[%emt 0:00:08]} cxd5 {[%emt 0:00:06]} 4. Bd3 {[%emt 0:00:07]} Nc6 {[%emt 0:00:31]} 5. c3 {[%emt 0:00:07]} Nf6 {[%emt 0:00:32]} 6. h3 {[%emt 0:00:19]} e5 {[%emt 0:00:41]} 7. dxe5 {[%emt 0:00:07]} Nxe5 {[%emt 0:00:05]} 8. Nf3 {[%emt 0:00:04]} Nxd3+ {[%emt 0:01:10]} 9. Qxd3 {[%emt 0:00:05]} Be7 {[%emt 0:03:14]} 10. O-O {[%emt 0:00:32]} O-O {[%emt 0:00:08]} 11. Bg5 {[%emt 0:00:59]} Qb6 {[%emt 0:10:33]} 12. Qc2 {[%emt 0:06:43]} Be6 {[%emt 0:08:03]} 13. Nbd2 {[%emt 0:01:28]} Rac8 {[%emt 0:00:44]} 14. Qb3 {[%emt 0:02:12]} Qxb3 {[%emt 0:10:34]} 15. axb3 {[%emt 0:00:11]} a6 {[%emt 0:00:49]} 16. Nd4 {[%emt 0:01:08]} Bc5 {[%emt 0:03:36]} 17. Bxf6 {[%emt 0:01:46]} gxf6 {[%emt 0:00:06]} 18. N2f3 {[%emt 0:00:48]} Bxd4 {[%emt 0:03:03]} 19. Nxd4 {[%emt 0:00:51]} Rcd8 {[%emt 0:02:20]} 20. Rfe1 {[%emt 0:02:12]} Bc8 {[%emt 0:05:38]} 21. Re7 {[%emt 0:04:52]} Rfe8 {[%emt 0:06:55]} 22. Rae1 {[%emt 0:01:20]} Kf8 {[%emt 0:02:10]} 23. Rxe8+ {[%emt 0:00:38]} Rxe8 {[%emt 0:00:05]} 24. Rxe8+ {[%emt 0:01:32]} Kxe8 {[%emt 0:01:27]} 25. Kh2 {[%emt 0:01:31]} f5 {[%emt 0:03:29]} 26. Kg3 {[%emt 0:01:48]} Ke7 {[%emt 0:00:19]} 27. Kh4 {[%emt 0:03:36]} Kf6 {[%emt 0:00:46]} 28. Kh5 {[%emt 0:03:42]} Kg7 {[%emt 0:00:35]} 29. f4 {[%emt 0:04:53]} h6 {[%emt 0:01:48]} 30. Nc2 {[%emt 0:05:31]} Bd7 {[%emt 0:01:17]} 31. Ne3 {[%emt 0:01:11]} Be6 {[%emt 0:00:10]} 32. b4 {[%emt 0:00:44]} b6 {[%emt 0:03:05]} 33. g4 {[%emt 0:07:48]} fxg4 {[%emt 0:00:26]} 34. hxg4 {[%emt 0:02:05]} f6 {[%emt 0:00:22]} 35. Kh4 {[%emt 0:09:39]} Kf8 {[%emt 0:02:28]} 36. Nc2 {[%emt 0:02:46]} Kg7 {[%emt 0:01:15]} 37. Nd4 {[%emt 0:20:52]} Bd7 {[%emt 0:01:16]} 38. Ne2 {[%emt 0:03:54]} Be6 {[%emt 0:03:49]} 39. Kg3 {[%emt 0:07:48]} Bf7 {[%emt 0:00:43]} 40. Nd4 {[%emt 0:01:34]} Kf8 {[%emt 0:12:36]} 41. Kh4 {[%emt 0:10:47]} Kg7 {[%emt 0:07:11]} 42. Nf5+ {[%emt 0:03:02]} Kg6 {[%emt 0:02:07]} 43. Ne7+ {[%emt 0:03:09]} Kg7 {[%emt 0:02:58]} 44. Nc8 {[%emt 0:02:24]} b5 {[%emt 0:00:00]} 45. Nb6 {[%emt 0:03:57]} f5 {[%emt 0:03:15]} 46. g5 {[%emt 0:00:35]} Be6 {[%emt 0:01:35]} 47. Na8 {[%emt 0:02:00]} Kg6 {[%emt 0:02:37]} 48. gxh6 {[%emt 0:00:48]} Kxh6 {[%emt 0:00:04]} 49. Nc7 {[%emt 0:00:08]} Bf7 {[%emt 0:00:09]} 50. Nxa6 {[%emt 0:00:31]} Be8 {[%emt 0:00:18]} 51. Nc7 {[%emt 0:02:13]} Bc6 {[%emt 0:00:04]} 52. Ne6 {[%emt 0:00:15]} Kg6 {[%emt 0:00:11]} 53. Kg3 {[%emt 0:02:25]} Kf6 {[%emt 0:00:33]} 54. Nd4 {[%emt 0:00:22]} Bd7 {[%emt 0:00:11]} 55. Kf3 {[%emt 0:00:10]} Kg6 {[%emt 0:00:24]} 56. Ke3 {[%emt 0:00:39]} Kh5 {[%emt 0:00:36]} 57. Nf3 {[%emt 0:01:44]} Bc8 {[%emt 0:00:58]} 58. Ne5 {[%emt 0:00:29]} Be6 {[%emt 0:13:04]} 59. Kd4 {[%emt 0:00:30]} Kh6 {[%emt 0:00:57]} 60. Kc5 {[%emt 0:00:39]} Kh5 {[%emt 0:00:02]} 61. Kxb5 {[%emt 0:01:36]} Kh4 {[%emt 0:00:04]} 62. Kc5 {[%emt 0:00:13]} Kg3 {[%emt 0:00:05]} 63. Nd3 {[%emt 0:00:30]} Kf3 {[%emt 0:00:28]} 64. Kd4 {[%emt 0:00:18]} Bc8 {[%emt 0:04:00]} 65. b5 {[%emt 0:00:24]} Bb7 {[%emt 0:00:07]} 66. b6 {[%emt 0:00:17]} Ba8 {[%emt 0:00:16]} 67. Ke5 {[%emt 0:00:59]} 1-0

[Event "Prague Festival Futures 2024"]
[Site "Prague"]
[Date "2024.02.28"]
[Round "2.4"]
[White "Brzezina, Pawel"]
[Black "Jakubse, Tamae Severina"]
[Result "1-0"]
[ECO "D71"]
[WhiteElo "1834"]
[BlackElo "1735"]
[Annotator "NA RC"]
[PlyCount "63"]
[EventDate "2024.02.22"]
[EventType "tourn"]
[EventCountry "CZE"]
[SourceTitle "playchess.com"]
[Source "ChessBase"]
[SourceQuality "1"]
[TimeControl "40/5400+30:1800+30"]

1. d4 {[%emt 0:00:13]} Nf6 {[%emt 0:00:09]} 2. c4 {[%emt 0:01:20]} g6 {[%emt 0:00:07]} 3. g3 {[%emt 0:01:40]} Bg7 {[%emt 0:00:21]} 4. Bg2 {[%emt 0:01:00]} d5 {[%emt 0:00:23]} 5. cxd5 {[%emt 0:00:46]} Nxd5 {[%emt 0:00:11]} 6. Nf3 {[%emt 0:00:40]} c5 {[%emt 0:06:13]} 7. e4 {[%emt 0:08:25]} Nf6 {[%emt 0:03:26]} 8. d5 {[%emt 0:04:58]} O-O {[%emt 0:04:43]} 9. Nc3 {[%emt 0:03:57]} e6 {[%emt 0:03:12]} 10. O-O {[%emt 0:01:39]} exd5 {[%emt 0:09:21]} 11. exd5 {[%emt 0:01:11]} b6 {[%emt 0:03:55]} 12. Ne5 {[%emt 0:11:16]} Bb7 {[%emt 0:09:37]} 13. Nc6 {[%emt 0:19:14]} Qd7 {[%emt 0:08:54]} 14. Bf4 {[%emt 0:01:05]} Na6 {[%emt 0:06:33]} 15. Nb5 {[%emt 0:12:08]} Nb4 {[%emt 0:10:57]} 16. Nc7 {[%emt 0:02:58]} Rac8 {[%emt 0:01:17]} 17. Ne7+ {[%emt 0:04:22]} Qxe7 {[%emt 0:05:44]} 18. d6 {[%emt 0:00:12]} Qd7 {[%emt 0:00:12]} 19. Bxb7 {[%emt 0:00:10]} Rb8 {[%emt 0:04:19]} 20. Bf3 {[%emt 0:05:46]} Nc6 {[%emt 0:04:15]} 21. Bxc6 {[%emt 0:01:36]} Qxc6 {[%emt 0:00:09]} 22. Be5 {[%emt 0:04:30]} Ne8 {[%emt 0:03:06]} 23. Bxg7 {[%emt 0:01:54]} Kxg7 {[%emt 0:00:17]} 24. Nxe8+ {[%emt 0:00:16]} Rfxe8 {[%emt 0:00:58]} 25. Qd3 {[%emt 0:00:55]} Rbd8 {[%emt 0:00:51]} 26. Rad1 {[%emt 0:00:37]} Re6 {[%emt 0:00:43]} 27. d7 {[%emt 0:00:13]} Re7 {[%emt 0:01:02]} 28. Qc3+ {[%emt 0:00:41]} Kg8 {[%emt 0:00:41]} 29. Rfe1 {[%emt 0:01:40]} Rexd7 {[%emt 0:01:48]} 30. Rxd7 {[%emt 0:00:36]} Qxd7 {[%emt 0:00:11]} 31. Qf6 {[%emt 0:00:45]} Qd6 {[%emt 0:04:31]} 32. Re8+ {[%emt 0:00:38]} 1-0

[Event "Prague Festival Futures 2024"]
[Site "Prague"]
[Date "2024.02.28"]
[Round "2.5"]
[White "Peglau, Paul David"]
[Black "Andre, Tomas"]
[Result "0-1"]
[ECO "E62"]
[WhiteElo "1764"]
[BlackElo "1829"]
[Annotator "NA RC"]
[PlyCount "74"]
[EventDate "2024.02.22"]
[EventType "tourn"]
[EventCountry "CZE"]
[SourceTitle "playchess.com"]
[Source "ChessBase"]
[SourceQuality "1"]
[TimeControl "40/5400+30:1800+30"]

1. Nf3 {[%emt 0:00:03]} Nf6 {[%emt 0:00:18]} 2. g3 {[%emt 0:00:08]} g6 {[%emt 0:00:14]} 3. Bg2 {[%emt 0:00:14]} Bg7 {[%emt 0:00:16]} 4. c4 {[%emt 0:00:10]} O-O {[%emt 0:00:17]} 5. d4 {[%emt 0:00:08]} d6 {[%emt 0:00:25]} 6. Nc3 {[%emt 0:00:19]} Nc6 {[%emt 0:00:47]} 7. O-O {[%emt 0:02:52]} e5 {[%emt 0:00:26]} 8. e3 {[%emt 0:03:34]} Re8 {[%emt 0:01:42]} 9. b3 {[%emt 0:02:02]} Nd7 {[%emt 0:03:12]} 10. dxe5 {[%emt 0:02:26]} dxe5 {[%emt 0:01:15]} 11. Bb2 {[%emt 0:01:40]} Nc5 {[%emt 0:04:00]} 12. Qe2 {[%emt 0:04:02]} e4 {[%emt 0:03:23]} 13. Rad1 {[%emt 0:07:03]} Bd7 {[%emt 0:03:24]} 14. Nd4 {[%emt 0:03:36]} Nb4 {[%emt 0:12:29]} 15. a3 {[%emt 0:06:30]} Nbd3 {[%emt 0:04:09]} 16. Nxe4 {[%emt 0:05:05]} Rxe4 {[%emt 0:02:26]} 17. Rxd3 {[%emt 0:02:06]} Nxd3 {[%emt 0:00:21]} 18. Qxd3 {[%emt 0:01:17]} Re8 {[%emt 0:05:28]} 19. Qc2 {[%emt 0:08:46]} c6 {[%emt 0:04:59]} 20. Nf3 {[%emt 0:06:24]} Bf5 {[%emt 0:09:22]} 21. Qc1 {[%emt 0:01:50]} Bxb2 {[%emt 0:04:57]} 22. Qxb2 {[%emt 0:00:03]} Qe7 {[%emt 0:01:31]} 23. Nd4 {[%emt 0:04:49]} Qe5 {[%emt 0:06:04]} 24. Qc1 {[%emt 0:10:42]} Rad8 {[%emt 0:02:34]} 25. Nxf5 {[%emt 0:02:33]} Qxf5 {[%emt 0:00:18]} 26. e4 {[%emt 0:00:39]} Qd7 {[%emt 0:09:11]} 27. f4 {[%emt 0:04:49]} Qd2 {[%emt 0:01:09]} 28. Qb1 {[%emt 0:01:53]} Rd3 {[%emt 0:04:07]} 29. Rc1 {[%emt 0:02:08]} Qe3+ {[%emt 0:00:54]} 30. Kh1 {[%emt 0:00:14]} Rxb3 {[%emt 0:00:36]} 31. Qc2 {[%emt 0:00:05]} Rxa3 {[%emt 0:00:46]} 32. Rd1 {[%emt 0:00:18]} Rc3 {[%emt 0:01:13]} 33. Qb2 {[%emt 0:00:01]} Rxc4 {[%emt 0:01:52]} 34. Qxb7 {[%emt 0:00:08]} Rcxe4 {[%emt 0:02:31]} 35. Qxc6 {[%emt 0:00:54]} Rd4 {[%emt 0:00:46]} 36. Rg1 {[%emt 0:01:24]} Red8 {[%emt 0:01:31]} 37. Qc5 {[%emt 0:00:28]} Rd3 {[%emt 0:01:23]} 0-1

[Event "Prague Festival Futures 2024"]
[Site "Prague"]
[Date "2024.02.29"]
[Round "3.1"]
[White "Andre, Tomas"]
[Black "Siskou, Evangelia"]
[Result "1/2-1/2"]
[ECO "B23"]
[WhiteElo "1829"]
[BlackElo "1680"]
[Annotator "NA RC"]
[PlyCount "99"]
[EventDate "2024.02.22"]
[EventType "tourn"]
[EventCountry "CZE"]
[SourceTitle "playchess.com"]
[Source "ChessBase"]
[SourceQuality "1"]
[TimeControl "40/5400+30:1800+30"]

1. e4 {[%emt 0:00:03]} c5 {[%emt 0:00:24]} 2. Nc3 {[%emt 0:00:09]} d6 {[%emt 0:00:26]} 3. d4 {[%emt 0:00:10]} cxd4 {[%emt 0:00:51]} 4. Qxd4 {[%emt 0:00:19]} Nc6 {[%emt 0:00:47]} 5. Qd2 {[%emt 0:00:21]} g6 {[%emt 0:01:03]} 6. b3 {[%emt 0:00:15]} Bg7 {[%emt 0:01:58]} 7. Bb2 {[%emt 0:00:38]} Nf6 {[%emt 0:00:38]} 8. O-O-O {[%emt 0:00:20]} O-O {[%emt 0:00:23]} 9. f3 {[%emt 0:01:10]} Qa5 {[%emt 0:08:03]} 10. Nge2 {[%emt 0:09:47]} b5 {[%emt 0:18:29]} 11. Kb1 {[%emt 0:08:31]} Nd7 {[%emt 0:04:19]} 12. Qd5 {[%emt 0:10:06]} Nb6 {[%emt 0:20:58]} 13. Qxb5 {[%emt 0:03:13]} Qxb5 {[%emt 0:00:29]} 14. Nxb5 {[%emt 0:00:01]} Bxb2 {[%emt 0:04:56]} 15. Kxb2 {[%emt 0:00:03]} Rb8 {[%emt 0:00:01]} 16. Ned4 {[%emt 0:06:26]} Ne5 {[%emt 0:07:02]} 17. h3 {[%emt 0:09:36]} a6 {[%emt 0:04:39]} 18. f4 {[%emt 0:01:16]} Ned7 {[%emt 0:02:38]} 19. Nc3 {[%emt 0:07:25]} Bb7 {[%emt 0:01:24]} 20. Bd3 {[%emt 0:08:49]} Nc5 {[%emt 0:03:22]} 21. Rhe1 {[%emt 0:02:23]} Ba8 {[%emt 0:03:26]} 22. g4 {[%emt 0:03:38]} Nba4+ {[%emt 0:02:10]} 23. Nxa4 {[%emt 0:00:14]} Nxa4+ {[%emt 0:00:06]} 24. Ka1 {[%emt 0:00:15]} Nc3 {[%emt 0:00:13]} 25. Rd2 {[%emt 0:00:40]} Rb4 {[%emt 0:01:50]} 26. Kb2 {[%emt 0:05:02]} Na4+ {[%emt 0:00:55]} 27. Ka3 {[%emt 0:02:22]} Rxd4 {[%emt 0:00:24]} 28. bxa4 {[%emt 0:00:11]} Bc6 {[%emt 0:00:39]} 29. c4 {[%emt 0:00:42]} Rb8 {[%emt 0:08:23]} 30. Re3 {[%emt 0:00:43]} f5 {[%emt 0:02:02]} 31. exf5 {[%emt 0:02:06]} gxf5 {[%emt 0:00:23]} 32. gxf5 {[%emt 0:01:42]} Kf7 {[%emt 0:01:52]} 33. f6 {[%emt 0:00:56]} Kxf6 {[%emt 0:00:10]} 34. f5 {[%emt 0:02:19]} Bd7 {[%emt 0:01:00]} 35. Rde2 {[%emt 0:04:03]} d5 {[%emt 0:00:46]} 36. Bc2 {[%emt 0:02:21]} Rxc4 {[%emt 0:00:24]} 37. Bb3 {[%emt 0:00:15]} Re4 {[%emt 0:00:35]} 38. Rxe4 {[%emt 0:01:04]} dxe4 {[%emt 0:00:01]} 39. Rxe4 {[%emt 0:00:17]} Bxf5 {[%emt 0:00:02]} 40. Rc4 {[%emt 0:02:01]} Rb6 {[%emt 0:00:57]} 41. a5 {[%emt 0:30:52]} Rd6 {[%emt 0:30:58]} 42. Rb4 {[%emt 0:02:16]} Bxh3 {[%emt 0:00:00]} 43. Rb6 {[%emt 0:00:00]} Bf1 {[%emt 0:00:00]} 44. Kb4 {[%emt 0:00:00]} h5 {[%emt 0:00:00]} 45. Bd1 {[%emt 0:00:00]} h4 {[%emt 0:00:00]} 46. Bg4 {[%emt 0:00:00]} h3 {[%emt 0:00:00]} 47. Kc5 {[%emt 0:00:00]} Bg2 {[%emt 0:00:00]} 48. Bxh3 {[%emt 0:00:00]} Bxh3 {[%emt 0:00:00]} 49. Rxd6+ {[%emt 0:00:00]} exd6+ {[%emt 0:00:00]} 50. Kxd6 {[%emt 0:00:00]} 1/2-1/2

[Event "Prague Festival Futures 2024"]
[Site "Prague"]
[Date "2024.02.29"]
[Round "3.2"]
[White "Jakubse, Tamae Severina"]
[Black "Peglau, Paul David"]
[Result "1/2-1/2"]
[ECO "B22"]
[WhiteElo "1735"]
[BlackElo "1764"]
[Annotator "NA RC"]
[PlyCount "100"]
[EventDate "2024.02.22"]
[EventType "tourn"]
[EventCountry "CZE"]
[SourceTitle "playchess.com"]
[Source "ChessBase"]
[SourceQuality "1"]
[TimeControl "40/5400+30:1800+30"]

1. e4 {[%emt 0:00:03]} c5 {[%emt 0:00:08]} 2. c3 {[%emt 0:00:06]} e6 {[%emt 0:00:13]} 3. d4 {[%emt 0:00:26]} d5 {[%emt 0:00:10]} 4. exd5 {[%emt 0:00:13]} exd5 {[%emt 0:00:09]} 5. Nf3 {[%emt 0:00:32]} Nc6 {[%emt 0:00:19]} 6. Bb5 {[%emt 0:00:47]} Nf6 {[%emt 0:02:05]} 7. O-O {[%emt 0:01:35]} c4 {[%emt 0:01:34]} 8. b3 {[%emt 0:08:05]} cxb3 {[%emt 0:00:10]} 9. axb3 {[%emt 0:01:15]} Be7 {[%emt 0:00:53]} 10. Bf4 {[%emt 0:04:48]} O-O {[%emt 0:00:32]} 11. h3 {[%emt 0:01:42]} Be6 {[%emt 0:01:15]} 12. Nbd2 {[%emt 0:03:23]} Ne4 {[%emt 0:04:24]} 13. Nxe4 {[%emt 0:04:57]} dxe4 {[%emt 0:00:09]} 14. Ne5 {[%emt 0:07:53]} Nxe5 {[%emt 0:01:08]} 15. Bxe5 {[%emt 0:00:10]} f5 {[%emt 0:07:26]} 16. Bc4 {[%emt 0:05:38]} Bxc4 {[%emt 0:06:00]} 17. bxc4 {[%emt 0:00:07]} Bd6 {[%emt 0:05:38]} 18. Bxd6 {[%emt 0:02:41]} Qxd6 {[%emt 0:00:08]} 19. Qb3 {[%emt 0:01:36]} Qc6 {[%emt 0:01:29]} 20. Rfb1 {[%emt 0:01:51]} Rf7 {[%emt 0:03:10]} 21. Ra5 {[%emt 0:06:48]} b6 {[%emt 0:03:02]} 22. Rb5 {[%emt 0:12:48]} f4 {[%emt 0:08:06]} 23. c5 {[%emt 0:04:19]} bxc5 {[%emt 0:01:10]} 24. Rxc5 {[%emt 0:00:27]} Qg6 {[%emt 0:02:29]} 25. Qd5 {[%emt 0:03:09]} Raf8 {[%emt 0:04:19]} 26. Rb7 {[%emt 0:07:06]} f3 {[%emt 0:05:14]} 27. g4 {[%emt 0:03:00]} h6 {[%emt 0:16:01]} 28. Rc6 {[%emt 0:04:28]} Qg5 {[%emt 0:02:30]} 29. Qxg5 {[%emt 0:00:12]} hxg5 {[%emt 0:00:13]} 30. Rxf7 {[%emt 0:00:10]} Rxf7 {[%emt 0:00:12]} 31. Re6 {[%emt 0:00:13]} Rc7 {[%emt 0:00:42]} 32. Rxe4 {[%emt 0:01:43]} Rxc3 {[%emt 0:00:11]} 33. Re5 {[%emt 0:01:02]} Rd3 {[%emt 0:01:40]} 34. Rxg5 {[%emt 0:01:15]} Rxd4 {[%emt 0:00:12]} 35. Ra5 {[%emt 0:00:14]} Rd7 {[%emt 0:00:32]} 36. Kh2 {[%emt 0:00:19]} g6 {[%emt 0:03:45]} 37. Kg3 {[%emt 0:00:44]} Rf7 {[%emt 0:00:10]} 38. Ra3 {[%emt 0:00:24]} Kg7 {[%emt 0:00:46]} 39. Rxf3 {[%emt 0:00:43]} Rxf3+ {[%emt 0:02:41]} 40. Kxf3 {[%emt 0:00:07]} a5 {[%emt 0:00:06]} 41. Ke3 {[%emt 0:31:10]} g5 {[%emt 0:30:08]} 42. Kd4 {[%emt 0:02:10]} Kf6 {[%emt 0:01:31]} 43. Kc5 {[%emt 0:03:47]} Ke5 {[%emt 0:00:09]} 44. Kb5 {[%emt 0:00:13]} Kf4 {[%emt 0:00:11]} 45. Kxa5 {[%emt 0:00:07]} Kf3 {[%emt 0:00:06]} 46. h4 {[%emt 0:00:37]} gxh4 {[%emt 0:00:05]} 47. g5 {[%emt 0:00:06]} h3 {[%emt 0:00:05]} 48. g6 {[%emt 0:00:07]} h2 {[%emt 0:00:05]} 49. g7 {[%emt 0:00:06]} h1=Q {[%emt 0:00:05]} 50. g8=Q {[%emt 0:00:10]} Qa1+ {[%emt 0:00:14]} 1/2-1/2

[Event "Prague Festival Futures 2024"]
[Site "Prague"]
[Date "2024.02.29"]
[Round "3.3"]
[White "Aansh Nandan Nerurkar"]
[Black "Stara, Zuzana"]
[Result "1-0"]
[ECO "B12"]
[WhiteElo "1891"]
[BlackElo "1674"]
[Annotator "NA RC"]
[PlyCount "87"]
[EventDate "2024.02.22"]
[EventType "tourn"]
[EventCountry "CZE"]
[SourceTitle "playchess.com"]
[Source "ChessBase"]
[SourceQuality "1"]
[TimeControl "40/5400+30:1800+30"]

1. e4 {[%emt 0:00:01]} c6 {[%emt 0:00:04]} 2. d4 {[%emt 0:00:06]} d5 {[%emt 0:00:02]} 3. e5 {[%emt 0:00:06]} Bf5 {[%emt 0:00:08]} 4. Nd2 {[%emt 0:00:06]} e6 {[%emt 0:00:03]} 5. Nb3 {[%emt 0:00:06]} a6 {[%emt 0:00:10]} 6. Nf3 {[%emt 0:00:10]} Nd7 {[%emt 0:00:10]} 7. Be2 {[%emt 0:00:07]} c5 {[%emt 0:00:38]} 8. dxc5 {[%emt 0:00:04]} Bxc5 {[%emt 0:00:07]} 9. Nxc5 {[%emt 0:00:28]} Nxc5 {[%emt 0:00:07]} 10. Nd4 {[%emt 0:00:19]} Ne7 {[%emt 0:00:28]} 11. Be3 {[%emt 0:00:12]} Rc8 {[%emt 0:01:06]} 12. c3 {[%emt 0:00:10]} Bg6 {[%emt 0:03:38]} 13. O-O {[%emt 0:00:32]} O-O {[%emt 0:00:20]} 14. a4 {[%emt 0:00:26]} Nf5 {[%emt 0:04:15]} 15. Nxf5 {[%emt 0:01:04]} Bxf5 {[%emt 0:00:18]} 16. a5 {[%emt 0:00:55]} Qe7 {[%emt 0:02:42]} 17. Bd4 {[%emt 0:01:21]} Rfd8 {[%emt 0:03:11]} 18. Ra3 {[%emt 0:01:23]} Qh4 {[%emt 0:14:31]} 19. f4 {[%emt 0:03:09]} Ne4 {[%emt 0:03:35]} 20. Rb3 {[%emt 0:02:46]} Qe7 {[%emt 0:03:56]} 21. Be3 {[%emt 0:02:07]} h6 {[%emt 0:01:48]} 22. Rb6 {[%emt 0:01:56]} Rd7 {[%emt 0:22:37]} 23. Bd4 {[%emt 0:03:30]} Rdc7 {[%emt 0:01:56]} 24. Bd3 {[%emt 0:05:42]} Rc6 {[%emt 0:03:28]} 25. Rb4 {[%emt 0:01:58]} R6c7 {[%emt 0:09:28]} 26. Qe2 {[%emt 0:01:26]} Qh4 {[%emt 0:10:40]} 27. Rb6 {[%emt 0:05:35]} Bg4 {[%emt 0:04:12]} 28. Qe3 {[%emt 0:01:15]} Bf5 {[%emt 0:00:57]} 29. Be2 {[%emt 0:03:12]} Qe7 {[%emt 0:01:37]} 30. g4 {[%emt 0:02:04]} Bh7 {[%emt 0:00:43]} 31. f5 {[%emt 0:00:11]} exf5 {[%emt 0:07:54]} 32. gxf5 {[%emt 0:00:06]} Qg5+ {[%emt 0:00:58]} 33. Qxg5 {[%emt 0:00:10]} hxg5 {[%emt 0:00:11]} 34. Bg4 {[%emt 0:06:49]} Re8 {[%emt 0:00:45]} 35. Rd1 {[%emt 0:00:50]} Rd8 {[%emt 0:00:34]} 36. Rb4 {[%emt 0:00:37]} Nc5 {[%emt 0:00:31]} 37. Bxc5 {[%emt 0:00:45]} Rxc5 {[%emt 0:00:02]} 38. Rxb7 {[%emt 0:01:03]} Rxa5 {[%emt 0:00:30]} 39. e6 {[%emt 0:01:00]} fxe6 {[%emt 0:00:43]} 40. fxe6 {[%emt 0:00:07]} Re8 {[%emt 0:00:25]} 41. e7 {[%emt 0:32:21]} Bg6 {[%emt 0:02:41]} 42. Re1 {[%emt 0:00:00]} Be4 {[%emt 0:15:46]} 43. Be6+ {[%emt 0:00:00]} Kh8 {[%emt 0:01:36]} 44. Bf7 {[%emt 0:00:00]} 1-0

[Event "Prague Festival Futures 2024"]
[Site "Prague"]
[Date "2024.02.29"]
[Round "3.4"]
[White "Markina, Sofiia"]
[Black "Brzezina, Pawel"]
[Result "0-1"]
[ECO "B23"]
[WhiteElo "1680"]
[BlackElo "1834"]
[Annotator "NA RC"]
[PlyCount "52"]
[EventDate "2024.02.22"]
[EventType "tourn"]
[EventCountry "CZE"]
[SourceTitle "playchess.com"]
[Source "ChessBase"]
[SourceQuality "1"]
[TimeControl "40/5400+30:1800+30"]

1. e4 {[%emt 0:00:04]} c5 {[%emt 0:00:49]} 2. Nc3 {[%emt 0:00:17]} Nc6 {[%emt 0:01:51]} 3. Bb5 {[%emt 0:00:19]} Nd4 {[%emt 0:06:15]} 4. Bc4 {[%emt 0:00:31]} d6 {[%emt 0:01:35]} 5. Nge2 {[%emt 0:04:46]} Nxe2 {[%emt 0:01:59]} 6. Qxe2 {[%emt 0:00:36]} Nf6 {[%emt 0:06:42]} 7. d3 {[%emt 0:04:48]} e6 {[%emt 0:01:29]} 8. O-O {[%emt 0:04:44]} Be7 {[%emt 0:01:50]} 9. Re1 {[%emt 0:02:07]} a6 {[%emt 0:02:35]} 10. a4 {[%emt 0:01:11]} O-O {[%emt 0:01:42]} 11. Qf3 {[%emt 0:01:26]} e5 {[%emt 0:02:11]} 12. h3 {[%emt 0:07:27]} Be6 {[%emt 0:01:32]} 13. Bg5 {[%emt 0:11:29]} Nd7 {[%emt 0:04:58]} 14. Bxe7 {[%emt 0:04:23]} Qxe7 {[%emt 0:00:13]} 15. a5 {[%emt 0:02:27]} Kh8 {[%emt 0:08:15]} 16. Ne2 {[%emt 0:08:43]} Qg5 {[%emt 0:09:36]} 17. Ng3 {[%emt 0:07:06]} g6 {[%emt 0:01:32]} 18. Re3 {[%emt 0:10:53]} h5 {[%emt 0:06:06]} 19. Qd1 {[%emt 0:05:38]} h4 {[%emt 0:04:40]} 20. Ne2 {[%emt 0:01:47]} Nf6 {[%emt 0:04:26]} 21. Nc3 {[%emt 0:13:04]} Nh5 {[%emt 0:03:19]} 22. Rf3 {[%emt 0:02:57]} Nf4 {[%emt 0:01:25]} 23. Rxf4 {[%emt 0:01:09]} Qxf4 {[%emt 0:01:39]} 24. Bd5 {[%emt 0:03:29]} Rab8 {[%emt 0:00:51]} 25. Ra3 {[%emt 0:00:29]} b5 {[%emt 0:01:59]} 26. axb6 {[%emt 0:00:32]} Rxb6 {[%emt 0:00:08]} 0-1